[Event "Early-Titled-Tuesday-Blitz-May-07-2024"]
[Site "Chess.com"]
[Date "2024.05.07"]
[Round "7"]
[White "GMBenjaminBok"]
[Black "jefferyx"]
[Result "1/2-1/2"]
[WhiteElo "3055"]
[BlackElo "3127"]
[TimeControl "180+1"]
[EndTime "9:22:23 PDT"]
[Termination "Game drawn - insufficient material"]

1. d4 {[%clk 0:03:00.9]} 1... d5 {[%clk 0:02:58]} 2. c4 {[%clk 0:03:01]} 2... e6
{[%clk 0:02:58.3]} 3. Nc3 {[%clk 0:03:00.6]} 3... Nf6 {[%clk 0:02:56.3]} 4. cxd5
{[%clk 0:03:00.8]} 4... exd5 {[%clk 0:02:57.2]} 5. Bg5 {[%clk 0:03:00.9]} 5...
c6 {[%clk 0:02:56.1]} 6. e3 {[%clk 0:03:01.3]} 6... Be7 {[%clk 0:02:53.3]} 7.
Bd3 {[%clk 0:03:01.4]} 7... h6 {[%clk 0:02:49.9]} 8. Bh4 {[%clk 0:03:01.1]} 8...
O-O {[%clk 0:02:40.2]} 9. Nge2 {[%clk 0:03:00.6]} 9... Re8 {[%clk 0:02:40.4]}
10. O-O {[%clk 0:03:00.1]} 10... a5 {[%clk 0:02:36]} 11. Rc1 {[%clk 0:02:59.6]}
11... Na6 {[%clk 0:02:34]} 12. f3 {[%clk 0:02:49.4]} 12... b5 {[%clk 0:02:18.7]}
13. Bf2 {[%clk 0:02:45.7]} 13... Bd7 {[%clk 0:02:07.3]} 14. h3 {[%clk
0:02:42.5]} 14... Bf8 {[%clk 0:01:56.8]} 15. Ng3 {[%clk 0:02:40.4]} 15... Qb8
{[%clk 0:01:06.9]} 16. e4 {[%clk 0:02:29.2]} 16... b4 {[%clk 0:01:07.1]} 17. Na4
{[%clk 0:02:19.9]} 17... dxe4 {[%clk 0:00:57.3]} 18. fxe4 {[%clk 0:02:20.8]}
18... c5 {[%clk 0:00:57.6]} 19. e5 {[%clk 0:01:54.7]} 19... Nd5 {[%clk
0:00:57.8]} 20. Be4 {[%clk 0:01:25.5]} 20... Be6 {[%clk 0:00:57.7]} 21. Qf3
{[%clk 0:01:22]} 21... Rd8 {[%clk 0:00:55.6]} 22. dxc5 {[%clk 0:01:09.7]} 22...
Qb5 {[%clk 0:00:45.6]} 23. b3 {[%clk 0:00:53.5]} 23... Rac8 {[%clk 0:00:43.1]}
24. Rfd1 {[%clk 0:00:48.1]} 24... Nc3 {[%clk 0:00:35.9]} 25. Nxc3 {[%clk
0:00:43.9]} 25... bxc3 {[%clk 0:00:36.4]} 26. Bd3 {[%clk 0:00:30.5]} 26... Rxd3
{[%clk 0:00:14.3]} 27. Qxd3 {[%clk 0:00:30.1]} 27... Qxd3 {[%clk 0:00:14.5]} 28.
Rxd3 {[%clk 0:00:31]} 28... Nb4 {[%clk 0:00:15.1]} 29. Rcxc3 {[%clk 0:00:10]}
29... Nxd3 {[%clk 0:00:15.5]} 30. Rxd3 {[%clk 0:00:10.9]} 30... Bxc5 {[%clk
0:00:15.8]} 31. Ne4 {[%clk 0:00:08.9]} 31... Bxf2+ {[%clk 0:00:14.4]} 32. Kxf2
{[%clk 0:00:09.8]} 32... Bf5 {[%clk 0:00:14.4]} 33. Ke3 {[%clk 0:00:07.8]} 33...
Bxe4 {[%clk 0:00:14.5]} 34. Kxe4 {[%clk 0:00:08.7]} 34... Rc2 {[%clk 0:00:14.4]}
35. a4 {[%clk 0:00:06.1]} 35... Rxg2 {[%clk 0:00:13.3]} 36. Kd5 {[%clk
0:00:02.9]} 36... Rc2 {[%clk 0:00:13.4]} 37. e6 {[%clk 0:00:02.7]} 37... fxe6+
{[%clk 0:00:12.6]} 38. Kxe6 {[%clk 0:00:03.6]} 38... Kh7 {[%clk 0:00:11.4]} 39.
h4 {[%clk 0:00:03.9]} 39... Kg6 {[%clk 0:00:10.9]} 40. Rg3+ {[%clk 0:00:03.8]}
40... Kh5 {[%clk 0:00:11.1]} 41. Rxg7 {[%clk 0:00:03.8]} 41... Kxh4 {[%clk
0:00:10.5]} 42. Ra7 {[%clk 0:00:03.8]} 42... Rc3 {[%clk 0:00:10.7]} 43. Rxa5
{[%clk 0:00:03.8]} 43... Rxb3 {[%clk 0:00:11.2]} 44. Rd5 {[%clk 0:00:03.3]}
44... Ra3 {[%clk 0:00:10.8]} 45. a5 {[%clk 0:00:03.5]} 45... Kg4 {[%clk
0:00:11.3]} 46. Kd7 {[%clk 0:00:03.9]} 46... h5 {[%clk 0:00:11.7]} 47. Kc7
{[%clk 0:00:04]} 47... h4 {[%clk 0:00:12.3]} 48. Kb6 {[%clk 0:00:04.2]} 48... h3
{[%clk 0:00:12.9]} 49. a6 {[%clk 0:00:04.6]} 49... h2 {[%clk 0:00:13.3]} 50. Rd1
{[%clk 0:00:04.5]} 50... Kg3 {[%clk 0:00:10.9]} 51. a7 {[%clk 0:00:04.5]} 51...
Rxa7 {[%clk 0:00:10]} 52. Kxa7 {[%clk 0:00:04.4]} 52... Kg2 {[%clk 0:00:10.9]}
53. Rd2+ {[%clk 0:00:04.7]} 53... Kg1 {[%clk 0:00:11.4]} 54. Rxh2 {[%clk
0:00:05.6]} 54... Kxh2 {[%clk 0:00:12.3]} 1/2-1/2

[Event "Early-Titled-Tuesday-Blitz-May-07-2024"]
[Site "Chess.com"]
[Date "2024.05.07"]
[Round "7"]
[White "kylnmd"]
[Black "aanshnerurkar"]
[Result "0-1"]
[WhiteElo "2261"]
[BlackElo "2476"]
[TimeControl "180+1"]
[EndTime "9:22:23 PDT"]
[Termination "aanshnerurkar won on time"]

1. d4 {[%clk 0:02:59.9]} 1... Nf6 {[%clk 0:02:59.7]} 2. c4 {[%clk 0:02:59.9]}
2... e6 {[%clk 0:03:00]} 3. Nf3 {[%clk 0:02:57.1]} 3... b6 {[%clk 0:03:00.2]} 4.
Nc3 {[%clk 0:02:56]} 4... Bb7 {[%clk 0:03:00.3]} 5. Qc2 {[%clk 0:02:52.7]} 5...
Bb4 {[%clk 0:02:59.1]} 6. Bg5 {[%clk 0:02:42]} 6... d6 {[%clk 0:02:56]} 7. e3
{[%clk 0:02:37.6]} 7... h6 {[%clk 0:02:54.4]} 8. Bh4 {[%clk 0:02:33.7]} 8... g5
{[%clk 0:02:53.5]} 9. Bg3 {[%clk 0:02:32.8]} 9... Ne4 {[%clk 0:02:53.5]} 10. Bd3
{[%clk 0:02:24]} 10... Bxc3+ {[%clk 0:02:52.5]} 11. bxc3 {[%clk 0:02:23]} 11...
f5 {[%clk 0:02:53.1]} 12. h4 {[%clk 0:02:18.6]} 12... g4 {[%clk 0:02:37.4]} 13.
Ng1 {[%clk 0:02:08.2]} 13... Nxg3 {[%clk 0:02:35.5]} 14. fxg3 {[%clk 0:02:07.7]}
14... Nd7 {[%clk 0:02:35.8]} 15. d5 {[%clk 0:02:02.3]} 15... exd5 {[%clk
0:02:17.4]} 16. Bxf5 {[%clk 0:02:00]} 16... Qe7 {[%clk 0:02:15.5]} 17. Bg6+
{[%clk 0:01:52.6]} 17... Kd8 {[%clk 0:02:13.3]} 18. O-O-O {[%clk 0:01:44.9]}
18... Qxe3+ {[%clk 0:02:11.2]} 19. Kb2 {[%clk 0:01:44.2]} 19... dxc4 {[%clk
0:02:05.3]} 20. Rd4 {[%clk 0:01:33.8]} 20... Qxg3 {[%clk 0:01:52.3]} 21. Be4
{[%clk 0:01:21.5]} 21... Kc8 {[%clk 0:01:06.7]} 22. Ne2 {[%clk 0:01:05.8]} 22...
Qf2 {[%clk 0:01:06.1]} 23. Bxb7+ {[%clk 0:00:49.2]} 23... Kxb7 {[%clk
0:01:04.4]} 24. Qe4+ {[%clk 0:00:39.1]} 24... Kb8 {[%clk 0:01:01.2]} 25. Qxg4
{[%clk 0:00:32.7]} 25... Re8 {[%clk 0:00:24.9]} 26. Rd2 {[%clk 0:00:31.9]} 26...
Ne5 {[%clk 0:00:19.3]} 27. Qh5 {[%clk 0:00:24.1]} 27... Kb7 {[%clk 0:00:12.7]}
28. Rhd1 {[%clk 0:00:19.7]} 28... Nd3+ {[%clk 0:00:10.6]} 29. Kb1 {[%clk
0:00:14.7]} 29... Re5 {[%clk 0:00:07.8]} 30. Qg4 {[%clk 0:00:12.3]} 30... Rae8
{[%clk 0:00:05]} 31. Nd4 {[%clk 0:00:08.5]} 31... Qe3 {[%clk 0:00:04.5]} 32.
Qf3+ {[%clk 0:00:06.6]} 32... Qxf3 {[%clk 0:00:04.6]} 33. Nxf3 {[%clk
0:00:06.4]} 33... Rb5+ {[%clk 0:00:04.3]} 34. Ka1 {[%clk 0:00:05.3]} 34... Rg8
{[%clk 0:00:04.6]} 35. Nd4 {[%clk 0:00:05.2]} 35... Re5 {[%clk 0:00:04]} 36. Kb1
{[%clk 0:00:05.1]} 36... a6 {[%clk 0:00:04.4]} 37. Kc2 {[%clk 0:00:05.1]} 37...
c5 {[%clk 0:00:04.4]} 38. Nf3 {[%clk 0:00:01.1]} 38... Re3 {[%clk 0:00:04.1]}
0-1

[Event "Early-Titled-Tuesday-Blitz-May-07-2024"]
[Site "Chess.com"]
[Date "2024.05.07"]
[Round "7"]
[White "VirtualCoach"]
[Black "Kostina_Nadezhda"]
[Result "1/2-1/2"]
[WhiteElo "2147"]
[BlackElo "2267"]
[TimeControl "180+1"]
[EndTime "9:22:23 PDT"]
[Termination "Game drawn by repetition"]

1. d4 {[%clk 0:02:59.6]} 1... d5 {[%clk 0:02:58.8]} 2. c4 {[%clk 0:02:59.5]}
2... dxc4 {[%clk 0:02:58.1]} 3. Nf3 {[%clk 0:02:57.5]} 3... Nf6 {[%clk
0:02:57.3]} 4. e3 {[%clk 0:02:57.3]} 4... e6 {[%clk 0:02:55.9]} 5. Bxc4 {[%clk
0:02:56.9]} 5... a6 {[%clk 0:02:56.5]} 6. Bd3 {[%clk 0:02:54.6]} 6... b5 {[%clk
0:02:56.6]} 7. O-O {[%clk 0:02:53.7]} 7... Bb7 {[%clk 0:02:56.8]} 8. Nbd2 {[%clk
0:02:53]} 8... Be7 {[%clk 0:02:57.1]} 9. e4 {[%clk 0:02:52.2]} 9... O-O {[%clk
0:02:56.9]} 10. Qc2 {[%clk 0:02:51.4]} 10... h6 {[%clk 0:02:56]} 11. b3 {[%clk
0:02:50]} 11... Nbd7 {[%clk 0:02:54.6]} 12. Bb2 {[%clk 0:02:49.4]} 12... c5
{[%clk 0:02:51.5]} 13. Rac1 {[%clk 0:02:41.4]} 13... cxd4 {[%clk 0:02:49.5]} 14.
Nxd4 {[%clk 0:02:42.3]} 14... Rc8 {[%clk 0:02:38.1]} 15. Qb1 {[%clk 0:02:41.6]}
15... Nc5 {[%clk 0:02:36.6]} 16. e5 {[%clk 0:02:16.7]} 16... Nxd3 {[%clk
0:02:00.7]} 17. Qxd3 {[%clk 0:02:15.4]} 17... Nd5 {[%clk 0:01:56.4]} 18. Qg3
{[%clk 0:02:04.9]} 18... Qd7 {[%clk 0:01:51.6]} 19. Ne4 {[%clk 0:02:00.1]} 19...
Rxc1 {[%clk 0:01:45.4]} 20. Rxc1 {[%clk 0:01:58.6]} 20... Rc8 {[%clk 0:01:45.9]}
21. Rd1 {[%clk 0:01:47.7]} 21... Nb4 {[%clk 0:01:27.3]} 22. Nf6+ {[%clk
0:01:41.6]} 22... Bxf6 {[%clk 0:01:16.9]} 23. exf6 {[%clk 0:01:41.5]} 23... g6
{[%clk 0:01:17.1]} 24. Qh4 {[%clk 0:01:39.1]} 24... Kh7 {[%clk 0:01:12.6]} 25.
Bc1 {[%clk 0:01:26.6]} 25... h5 {[%clk 0:00:50.1]} 26. Qg5 {[%clk 0:01:24.6]}
26... Rxc1 {[%clk 0:00:27.1]} 27. Qxc1 {[%clk 0:01:22.7]} 27... Qd5 {[%clk
0:00:24.2]} 28. f3 {[%clk 0:01:12.8]} 28... Nxa2 {[%clk 0:00:22.6]} 29. Qd2
{[%clk 0:01:01.9]} 29... Qc5 {[%clk 0:00:11]} 30. Qxa2 {[%clk 0:00:45.6]} 30...
e5 {[%clk 0:00:10.6]} 31. Qc2 {[%clk 0:00:43.5]} 31... Qb6 {[%clk 0:00:10]} 32.
Qf2 {[%clk 0:00:43]} 32... exd4 {[%clk 0:00:09.9]} 33. Qxd4 {[%clk 0:00:43.1]}
33... Qe6 {[%clk 0:00:08.7]} 34. Qd7 {[%clk 0:00:40.7]} 34... Qe3+ {[%clk
0:00:08.5]} 35. Kh1 {[%clk 0:00:40.4]} 35... Bxf3 {[%clk 0:00:05.4]} 36. Qxf7+
{[%clk 0:00:39.1]} 36... Kh6 {[%clk 0:00:05.7]} 37. Rg1 {[%clk 0:00:20.7]} 37...
Bxg2+ {[%clk 0:00:04.2]} 38. Kxg2 {[%clk 0:00:19.2]} 38... Qe2+ {[%clk
0:00:04.5]} 39. Kh3 {[%clk 0:00:17.3]} 39... Qf3+ {[%clk 0:00:04.6]} 40. Rg3
{[%clk 0:00:09.6]} 40... Qf1+ {[%clk 0:00:04.8]} 41. Rg2 {[%clk 0:00:09.9]}
41... Qf3+ {[%clk 0:00:04.7]} 42. Rg3 {[%clk 0:00:09.7]} 42... Qf1+ {[%clk
0:00:04.3]} 43. Rg2 {[%clk 0:00:09.3]} 43... Qf3+ {[%clk 0:00:01.2]} 44. Rg3
{[%clk 0:00:09.5]} 1/2-1/2

[Event "Early-Titled-Tuesday-Blitz-May-07-2024"]
[Site "Chess.com"]
[Date "2024.05.07"]
[Round "7"]
[White "Puzzlebot_1294"]
[Black "Nitzan_Steinberg"]
[Result "0-1"]
[WhiteElo "2646"]
[BlackElo "2935"]
[TimeControl "180+1"]
[EndTime "9:22:24 PDT"]
[Termination "Nitzan_Steinberg won on time"]

1. d4 {[%clk 0:03:00.9]} 1... Nf6 {[%clk 0:02:56.8]} 2. Bf4 {[%clk 0:03:00.6]}
2... d6 {[%clk 0:02:54.4]} 3. Nc3 {[%clk 0:02:59.9]} 3... g6 {[%clk 0:02:49.4]}
4. e4 {[%clk 0:02:59.2]} 4... Bg7 {[%clk 0:02:50.1]} 5. Qd2 {[%clk 0:02:58.5]}
5... c6 {[%clk 0:02:50.3]} 6. Bh6 {[%clk 0:02:42.8]} 6... Bxh6 {[%clk
0:02:50.1]} 7. Qxh6 {[%clk 0:02:43.7]} 7... Qa5 {[%clk 0:02:50.5]} 8. Bd3 {[%clk
0:02:42.5]} 8... Nbd7 {[%clk 0:02:42.4]} 9. Ne2 {[%clk 0:02:37.7]} 9... b5
{[%clk 0:02:25.7]} 10. Qd2 {[%clk 0:02:34.5]} 10... b4 {[%clk 0:02:22.7]} 11.
Nd1 {[%clk 0:02:34.3]} 11... Qb6 {[%clk 0:02:19.7]} 12. Ne3 {[%clk 0:02:32.7]}
12... a5 {[%clk 0:02:16.7]} 13. a3 {[%clk 0:02:31.1]} 13... Ba6 {[%clk
0:02:04.9]} 14. O-O {[%clk 0:02:20.1]} 14... b3 {[%clk 0:01:52.6]} 15. c4 {[%clk
0:01:40.5]} 15... e5 {[%clk 0:01:44.1]} 16. d5 {[%clk 0:01:01]} 16... O-O {[%clk
0:01:34.2]} 17. Kh1 {[%clk 0:00:56.4]} 17... Rfe8 {[%clk 0:01:31.6]} 18. Rae1
{[%clk 0:00:49.9]} 18... a4 {[%clk 0:01:28.9]} 19. Nc3 {[%clk 0:00:46.5]} 19...
Nc5 {[%clk 0:01:22.5]} 20. Bb1 {[%clk 0:00:34]} 20... Bb7 {[%clk 0:01:10.4]} 21.
dxc6 {[%clk 0:00:32]} 21... Bxc6 {[%clk 0:01:00.3]} 22. Ned5 {[%clk 0:00:32.6]}
22... Bxd5 {[%clk 0:00:58.9]} 23. exd5 {[%clk 0:00:31.8]} 23... Qa6 {[%clk
0:00:55]} 24. Qe2 {[%clk 0:00:23.8]} 24... e4 {[%clk 0:00:51.4]} 25. Rd1 {[%clk
0:00:23.1]} 25... Re5 {[%clk 0:00:51.1]} 26. Rd4 {[%clk 0:00:21.9]} 26... Rae8
{[%clk 0:00:51.1]} 27. Qe3 {[%clk 0:00:20.6]} 27... Kg7 {[%clk 0:00:50.9]} 28.
Ne2 {[%clk 0:00:19.2]} 28... Rh5 {[%clk 0:00:47.2]} 29. h3 {[%clk 0:00:17.6]}
29... Rhe5 {[%clk 0:00:44]} 30. Ng3 {[%clk 0:00:17.2]} 30... h5 {[%clk
0:00:42.6]} 31. Ne2 {[%clk 0:00:16.7]} 31... h4 {[%clk 0:00:32.9]} 32. Nc3
{[%clk 0:00:15.3]} 32... R8e7 {[%clk 0:00:23.6]} 33. Qf4 {[%clk 0:00:13]} 33...
g5 {[%clk 0:00:22.7]} 34. Qd2 {[%clk 0:00:11.5]} 34... Qc8 {[%clk 0:00:17]} 35.
Nd1 {[%clk 0:00:09.1]} 35... Nh5 {[%clk 0:00:14.3]} 36. Ne3 {[%clk 0:00:06.4]}
36... f5 {[%clk 0:00:14.6]} 37. Qd1 {[%clk 0:00:05.5]} 37... Nf6 {[%clk
0:00:14.3]} 38. Qe2 {[%clk 0:00:04.1]} 38... f4 {[%clk 0:00:14.8]} 39. Ng4
{[%clk 0:00:03.7]} 39... Nxg4 {[%clk 0:00:12]} 40. hxg4 {[%clk 0:00:04]} 40...
Qh8 {[%clk 0:00:08.5]} 41. f3 {[%clk 0:00:04.3]} 41... exf3 {[%clk 0:00:06.4]}
42. Qxf3 {[%clk 0:00:04.4]} 42... Re3 {[%clk 0:00:05.9]} 43. Qf2 {[%clk
0:00:04.2]} 43... h3 {[%clk 0:00:06.5]} 44. g3 {[%clk 0:00:02.1]} 44... Kg8
{[%clk 0:00:04.7]} 0-1

[Event "Early-Titled-Tuesday-Blitz-May-07-2024"]
[Site "Chess.com"]
[Date "2024.05.07"]
[Round "7"]
[White "masterofpuppets2"]
[Black "Meri-Arabidze"]
[Result "0-1"]
[WhiteElo "2482"]
[BlackElo "2712"]
[TimeControl "180+1"]
[EndTime "9:22:25 PDT"]
[Termination "Meri-Arabidze won by resignation"]

1. d4 {[%clk 0:03:00.9]} 1... Nf6 {[%clk 0:02:59.6]} 2. c4 {[%clk 0:03:00.7]}
2... e6 {[%clk 0:03:00.1]} 3. Nf3 {[%clk 0:03:01.2]} 3... Bb4+ {[%clk
0:03:00.2]} 4. Bd2 {[%clk 0:03:01]} 4... Qe7 {[%clk 0:03:00.2]} 5. Nc3 {[%clk
0:03:00.8]} 5... b6 {[%clk 0:02:56.4]} 6. g3 {[%clk 0:02:58.6]} 6... Bb7 {[%clk
0:02:56.5]} 7. Bg2 {[%clk 0:02:58.4]} 7... O-O {[%clk 0:02:56.1]} 8. O-O {[%clk
0:02:58.5]} 8... Bxc3 {[%clk 0:02:55.9]} 9. Bxc3 {[%clk 0:02:58.4]} 9... Ne4
{[%clk 0:02:56.6]} 10. Qc2 {[%clk 0:02:58.5]} 10... Nxc3 {[%clk 0:02:54.4]} 11.
Qxc3 {[%clk 0:02:57.8]} 11... d6 {[%clk 0:02:54.6]} 12. Rfe1 {[%clk 0:02:34.1]}
12... Be4 {[%clk 0:02:53.5]} 13. Bf1 {[%clk 0:02:32.3]} 13... Nd7 {[%clk
0:02:51.4]} 14. Nd2 {[%clk 0:02:31.8]} 14... Bg6 {[%clk 0:02:50.3]} 15. e4
{[%clk 0:02:31.3]} 15... e5 {[%clk 0:02:50.8]} 16. Nf3 {[%clk 0:02:26.4]} 16...
a5 {[%clk 0:02:45.7]} 17. b3 {[%clk 0:02:25.4]} 17... Rae8 {[%clk 0:02:44.8]}
18. Bg2 {[%clk 0:02:24.4]} 18... Qf6 {[%clk 0:02:36.9]} 19. Bh3 {[%clk
0:02:04.5]} 19... exd4 {[%clk 0:02:23.5]} 20. Nxd4 {[%clk 0:02:02.1]} 20... Nc5
{[%clk 0:02:23.7]} 21. f3 {[%clk 0:02:00.3]} 21... Ne6 {[%clk 0:02:19.8]} 22.
Rad1 {[%clk 0:01:34.7]} 22... c5 {[%clk 0:02:14.1]} 23. Nb5 {[%clk 0:01:31.7]}
23... Qxc3 {[%clk 0:02:13.8]} 24. Nxc3 {[%clk 0:01:32.6]} 24... Nd4 {[%clk
0:02:14.4]} 25. Bg2 {[%clk 0:01:20.6]} 25... f5 {[%clk 0:02:08.9]} 26. exf5
{[%clk 0:01:08.4]} 26... Bxf5 {[%clk 0:02:08.7]} 27. Nd5 {[%clk 0:01:05.6]}
27... Bc2 {[%clk 0:02:02.5]} 28. Rxe8 {[%clk 0:00:54.1]} 28... Rxe8 {[%clk
0:02:02.4]} 29. Rd2 {[%clk 0:00:54.3]} 29... Rb8 {[%clk 0:01:38.9]} 30. f4
{[%clk 0:00:47.9]} 30... b5 {[%clk 0:01:32.6]} 31. cxb5 {[%clk 0:00:45]} 31...
Rxb5 {[%clk 0:01:33.4]} 32. Nc3 {[%clk 0:00:41.1]} 32... Rb8 {[%clk 0:01:31.2]}
33. Bd5+ {[%clk 0:00:41]} 33... Kf8 {[%clk 0:01:30.2]} 34. Kf2 {[%clk
0:00:41.4]} 34... Bf5 {[%clk 0:01:21.3]} 35. Bc4 {[%clk 0:00:39.1]} 35... Ke7
{[%clk 0:01:13.9]} 36. Nd5+ {[%clk 0:00:38.2]} 36... Kd7 {[%clk 0:01:12.4]} 37.
Ne3 {[%clk 0:00:38.4]} 37... Be6 {[%clk 0:01:11.3]} 38. g4 {[%clk 0:00:36.2]}
38... Ra8 {[%clk 0:00:48]} 39. f5 {[%clk 0:00:33.2]} 39... Bxc4 {[%clk
0:00:47.7]} 40. Nxc4 {[%clk 0:00:34.1]} 40... Kc6 {[%clk 0:00:47.5]} 41. Nb2
{[%clk 0:00:24.3]} 41... h6 {[%clk 0:00:44.1]} 42. h4 {[%clk 0:00:23.7]} 42...
Re8 {[%clk 0:00:44.2]} 43. Nc4 {[%clk 0:00:19.9]} 43... Ra8 {[%clk 0:00:44.1]}
44. Nb2 {[%clk 0:00:19.9]} 44... Rf8 {[%clk 0:00:44.1]} 45. Kg3 {[%clk
0:00:19.3]} 45... h5 {[%clk 0:00:44.1]} 46. gxh5 {[%clk 0:00:17.3]} 46... Nxf5+
{[%clk 0:00:43.4]} 47. Kh3 {[%clk 0:00:16.8]} 47... Nd4 {[%clk 0:00:42.3]} 48.
Nc4 {[%clk 0:00:17.1]} 48... Ra8 {[%clk 0:00:29.8]} 49. Nb2 {[%clk 0:00:16.9]}
49... Re8 {[%clk 0:00:27.6]} 50. Nc4 {[%clk 0:00:16.2]} 50... Ra8 {[%clk
0:00:26.3]} 51. Nb2 {[%clk 0:00:16.2]} 51... d5 {[%clk 0:00:26.6]} 52. Nd3
{[%clk 0:00:14]} 52... Re8 {[%clk 0:00:22.9]} 53. Kg4 {[%clk 0:00:13.3]} 53...
Re4+ {[%clk 0:00:21.9]} 54. Kg5 {[%clk 0:00:12.8]} 54... Nf3+ {[%clk 0:00:22]}
55. Kf5 {[%clk 0:00:12]} 55... Nxd2 {[%clk 0:00:22.9]} 0-1

[Event "Early-Titled-Tuesday-Blitz-May-07-2024"]
[Site "Chess.com"]
[Date "2024.05.07"]
[Round "7"]
[White "Payyappat"]
[Black "SRob2003"]
[Result "0-1"]
[WhiteElo "2499"]
[BlackElo "2649"]
[TimeControl "180+1"]
[EndTime "9:22:25 PDT"]
[Termination "SRob2003 won on time"]

1. e4 {[%clk 0:03:00.9]} 1... c5 {[%clk 0:02:43.4]} 2. Nf3 {[%clk 0:03:00.4]}
2... d6 {[%clk 0:02:44]} 3. d4 {[%clk 0:03:01.3]} 3... cxd4 {[%clk 0:02:44.5]}
4. Nxd4 {[%clk 0:03:02.2]} 4... Nf6 {[%clk 0:02:44.5]} 5. Nc3 {[%clk 0:03:02.6]}
5... a6 {[%clk 0:02:45]} 6. h4 {[%clk 0:03:02.1]} 6... e5 {[%clk 0:02:44.6]} 7.
Nb3 {[%clk 0:03:02]} 7... Be6 {[%clk 0:02:43.4]} 8. f4 {[%clk 0:03:01.7]} 8...
exf4 {[%clk 0:02:42.5]} 9. Bxf4 {[%clk 0:03:02.6]} 9... Nc6 {[%clk 0:02:42.5]}
10. Qd2 {[%clk 0:03:01.7]} 10... Be7 {[%clk 0:02:42]} 11. O-O-O {[%clk
0:03:01.7]} 11... Ne5 {[%clk 0:02:42.6]} 12. Qe3 {[%clk 0:03:00.9]} 12... Qc7
{[%clk 0:02:41.7]} 13. h5 {[%clk 0:02:59.2]} 13... h6 {[%clk 0:02:33.6]} 14. Be2
{[%clk 0:02:57.4]} 14... Rc8 {[%clk 0:02:27.3]} 15. Rhg1 {[%clk 0:02:54.9]}
15... b5 {[%clk 0:02:23.8]} 16. a3 {[%clk 0:02:39.5]} 16... Nfd7 {[%clk
0:01:49.2]} 17. g4 {[%clk 0:02:26.8]} 17... Bf6 {[%clk 0:01:24.7]} 18. Kb1
{[%clk 0:02:19.3]} 18... Nc5 {[%clk 0:01:10.5]} 19. Bxb5+ {[%clk 0:02:02.4]}
19... axb5 {[%clk 0:01:08]} 20. Nxb5 {[%clk 0:02:03.3]} 20... Qb8 {[%clk
0:00:54.7]} 21. Nxd6+ {[%clk 0:01:57.4]} 21... Kf8 {[%clk 0:00:54.4]} 22. Nxc8
{[%clk 0:01:54.9]} 22... Nxb3 {[%clk 0:00:52.8]} 23. cxb3 {[%clk 0:01:53.7]}
23... Qxc8 {[%clk 0:00:51.4]} 24. Rc1 {[%clk 0:01:43.4]} 24... Qb7 {[%clk
0:00:50.2]} 25. Bxe5 {[%clk 0:01:41.4]} 25... Bxe5 {[%clk 0:00:47.8]} 26. Qc5+
{[%clk 0:01:41.5]} 26... Kg8 {[%clk 0:00:47.6]} 27. Qxe5 {[%clk 0:01:40.1]}
27... Qxb3 {[%clk 0:00:48.1]} 28. Rg3 {[%clk 0:01:33.2]} 28... Qa2+ {[%clk
0:00:47]} 29. Kc2 {[%clk 0:01:33.3]} 29... Kh7 {[%clk 0:00:46.4]} 30. Rc3 {[%clk
0:01:26.9]} 30... Rd8 {[%clk 0:00:36.9]} 31. Rd3 {[%clk 0:00:58.3]} 31... Rc8+
{[%clk 0:00:35.8]} 32. Kd2 {[%clk 0:00:53.2]} 32... Re8 {[%clk 0:00:24.1]} 33.
Qb5 {[%clk 0:00:26.4]} 33... Re7 {[%clk 0:00:17]} 34. Qb4 {[%clk 0:00:15.8]}
34... Ra7 {[%clk 0:00:12.8]} 35. e5 {[%clk 0:00:15.7]} 35... g5 {[%clk
0:00:07.3]} 36. Qe4+ {[%clk 0:00:09]} 36... Kg7 {[%clk 0:00:07.6]} 37. Qd4
{[%clk 0:00:09.3]} 37... Rb7 {[%clk 0:00:06.7]} 38. Rc2 {[%clk 0:00:08.3]} 38...
Qb1 {[%clk 0:00:06.3]} 39. b4 {[%clk 0:00:02.2]} 39... Qh1 {[%clk 0:00:04.8]}
40. Kc3 {[%clk 0:00:02.2]} 40... Qa1+ {[%clk 0:00:04.6]} 41. Kd2 {[%clk
0:00:02.3]} 41... Qh1 {[%clk 0:00:04.3]} 42. Kc3 {[%clk 0:00:02.1]} 42... Rb8
{[%clk 0:00:04]} 43. Kb2 {[%clk 0:00:01.8]} 43... Rb7 {[%clk 0:00:04.5]} 44.
Rdc3 {[%clk 0:00:01.2]} 44... Rd7 {[%clk 0:00:04.6]} 45. Qc5 {[%clk 0:00:00.2]}
45... Rd1 {[%clk 0:00:05]} 0-1